Cogmind - Beta 16 --- EXPLORER MODE // 2025.11.13 @ 21:31:38 // Winter2019/RPGLIKE Player: Grimbling Result: Destroyed by Executioner with Helical Railgun Performance ------------- Evolutions (9) 4500 Regions Visited (22) 4400 Robots Destroyed (243) 1215 Value Destroyed (11381) 11381 Prototype IDs (42) 840 Alien Tech Used (0) 0 Bonus (2350) 2350 TOTAL SCORE: 24686 Bonus ------- High Alert Combat Kills 145 Follower Combat Kills 505 Network Hubs Disabled 800 Met Data Miner 300 Built Enhanced Grunts 300 A7 Reached Mainframe 300 Cogmind --------- Core Integrity 0/1000 Matter 500/500 Energy 600/600 System Corruption 1% Temperature Cool (0) Movement Hovering (40) Location -1/Command Parts ------- > --- POWER (3) -------- Quantum Reactor Quantum Reactor > --- PROPULSION (7) --- Improved Antigrav System Improved Antigrav System Improved Antigrav System Improved Antigrav System Antigrav Array Combat Linear Gravjet > --- UTILITY (11) ----- Advanced Power Amplifier Long-range Sensor Array Advanced Signal Interpreter Improved Terrain Scanner Advanced Target Analyzer Advanced Recoil Stabilizer Improved Kinecellerator Advanced Phase Shifter Advanced Hardlight Generator High-powered Tractor Beam > --- WEAPON (3) ------- Helical Railgun Enhanced Hardcell Cannon > --- INVENTORY (3) ---- Hypervelocity Railgun Hypervelocity Railgun Enhanced Hardcell Cannon Peak State ------------ > --- POWER ------------ Quantum Reactor Quantum Reactor > --- PROPULSION ------- Improved Antigrav System Improved Antigrav System Improved Antigrav System Improved Antigrav System Antigrav Array Combat Linear Gravjet > --- UTILITY ---------- Advanced Power Amplifier Long-range Sensor Array Advanced Signal Interpreter Improved Terrain Scanner Advanced Target Analyzer Advanced Recoil Stabilizer Improved Kinecellerator Advanced Phase Shifter Powered Armor Advanced Hardlight Generator High-powered Tractor Beam > --- WEAPON ----------- Helical Railgun Enhanced Hardcell Cannon Enhanced Hardcell Cannon > --- INVENTORY -------- Hypervelocity Coil Gun Hypervelocity Coil Gun Enhanced Hardcell Cannon [Rating: 164] Favorites ----------- Power Light Angular Momentum Engine Engine Light Angular Momentum Engine Reactor Quantum Reactor Propulsion Linear Gravjet Treads Spiked Treads Leg Aluminum Leg Wheel Armored Wheel Hover Unit Linear Gravjet Utility High-powered Tractor Beam Device High-powered Tractor Beam Processor Advanced Signal Interpreter Protection Scrap Shield Weapon Railgun Energy Gun Particle Gun Ballistic Gun Railgun Ballistic Cannon Enhanced Hardcell Cannon Build | -11 -10 -10 -8 -7 -7 -6 -6 -6 -6 -5 -5 -5 -5 -5 -5 -4 -4 -4 -3 -2 -1 -1 ------- Run | Yrd Mat Sub Mat Fac Sto Fac Low Low Dat Pro Fac Ext Cet Arc Hub Fac Was Fac Res Res Acc Com Slots Evolved 20 | 4 . 1 4 2 1 1 . . . . 1 1 . . . . . . 1 2 2 . Power 2 | . . . . 1 . . . . . . . . . . . . . . . . 1 . Propulsion 6 | 1 . . 2 . . . . . . . 1 . . . . . . . . 1 1 . Utility 10 | 2 . 1 1 1 1 1 . . . . . 1 . . . . . . 1 1 . . Weapon 2 | 1 . . 1 . . . . . . . . . . . . . . . . . . . Parts Attached 123 | 8 3 7 25 9 2 13 . . . 2 11 1 2 3 . 2 . 8 4 15 7 1 Power 13 | 1 . . 1 3 1 1 . . . . . . 1 . . 1 . . 1 3 . . Engine 7 | 1 . . 1 3 1 1 . . . . . . . . . . . . . . . . Core . | . . . . . . . . . . . . . . . . . . . . . . . Reactor 6 | . . . . . . . . . . . . . 1 . . 1 . . 1 3 . . Propulsion 35 | 2 . 1 8 . . 4 . . . 2 5 . . . . 1 . 3 . 6 3 . Treads 1 | . . 1 . . . . . . . . . . . . . . . . . . . . Leg 2 | 2 . . . . . . . . . . . . . . . . . . . . . . Wheel 2 | . . . 2 . . . . . . . . . . . . . . . . . . . Hover 30 | . . . 6 . . 4 . . . 2 5 . . . . 1 . 3 . 6 3 . Flight . | . . . . . . . . . . . . . . . . . . . . . . . Utility 32 | 3 1 1 7 1 1 4 . . . . 2 1 . . . . . 4 3 3 1 . Device 23 | 1 1 . 6 1 . 3 . . . . 2 . . . . . . 3 2 3 1 . Storage . | . . . . . . . . . . . . . . . . . . . . . . . Processor 6 | 1 . . 1 . 1 1 . . . . . 1 . . . . . 1 . . . . Hackware . | . . . . . . . . . . . . . . . . . . . . . . . Protection 3 | 1 . 1 . . . . . . . . . . . . . . . . 1 . . . Artifact . | . . . . . . . . . . . . . . . . . . . . . . . Weapon 43 | 2 2 5 9 5 . 4 . . . . 4 . 1 3 . . . 1 . 3 3 1 Energy Gun 12 | . 2 3 6 1 . . . . . . . . . . . . . . . . . . Energy Cannon . | . . . . . . . . . . . . . . . . . . . . . . . Ballistic Gun 27 | 2 . 2 3 4 . 4 . . . . 4 . 1 3 . . . 1 . 2 . 1 Ballistic Cannon 4 | . . . . . . . . . . . . . . . . . . . . 1 3 . Launcher . | . . . . . . . . . . . . . . . . . . . . . . . Special Weapon . | . . . . . . . . . . . . . . . . . . . . . . . Impact Weapon . | . . . . . . . . . . . . . . . . . . . . . . . Slashing Weapon . | . . . . . . . . . . . . . . . . . . . . . . . Piercing Weapon . | . . . . . . . . . . . . . . . . . . . . . . . Special Melee Weapon . | . . . . . . . . . . . . . . . . . . . . . . . Unidentified Prototypes 10 | . . . 4 1 1 1 . . . . . . 1 . . . . 1 . . . 1 Parts Lost 1 | . . . . . . . . . . . . . . . . . 1 . . . . . Power . | . . . . . . . . . . . . . . . . . . . . . . . Propulsion . | . . . . . . . . . . . . . . . . . . . . . . . Utility . | . . . . . . . . . . . . . . . . . . . . . . . Weapon 1 | . . . . . . . . . . . . . . . . . 1 . . . . . Highest Loss Streak 1 | . . . . . . . . . . . . . . . . . 1 . . . . . To Critical Strikes . | . . . . . . . . . . . . . . . . . . . . . . . Average Backups 1 | . . . . 1 1 1 2 2 2 1 . . . . . . . . 1 2 2 2 Power . | . . . . . . . 1 1 1 . . . . . . . . . . . . . Propulsion . | . . . . . . . . . . . . . . . . . . . . . . . Utility . | . . . . . . . . . . . . . . . . . . . 1 1 . . Weapon . | . . . . . 1 1 1 1 1 1 . . . . . . . . . . . 2 Tool/Special . | . . . . . . . . . . . . . . . . . . . . . . . Unused Backups 6 | . . 1 1 . 1 . . . . . 1 . . . . . . . . . . 2 Power . | . . . . . . . . . . . . . . . . . . . . . . . Propulsion 3 | . . 1 1 . . . . . . . 1 . . . . . . . . . . . Utility 1 | . . . . . 1 . . . . . . . . . . . . . . . . . Weapon 2 | . . . . . . . . . . . . . . . . . . . . . . 2 Tool/Special . | . . . . . . . . . . . . . . . . . . . . . . . Average Slot Usage (%) 93 | . 100 88 89 99 100 91 88 88 88 93 98 100 100 100 100 100 100 98 100 95 91 90 Engine 8 | . 12 11 7 9 12 11 11 11 11 11 11 10 5 5 5 2 . . . . . . Reactor 2 | . . . . . . . . . . . . . 4 5 5 7 10 10 10 9 8 8 Leg 6 | . 25 21 1 . . . . . . . . . . . . . . . . . . . Hover 15 | . . . 20 27 25 15 11 11 11 16 25 26 26 26 26 26 26 26 25 22 24 25 Device 28 | . 15 22 24 31 31 34 35 35 35 35 33 31 31 31 31 31 31 30 32 35 33 33 Processor 7 | . 12 . . 6 10 11 11 11 11 11 11 12 15 15 15 15 15 15 10 9 8 8 Protection 4 | . 8 10 6 . . . . . . . . . . . . . . . 4 4 4 3 Energy Gun 2 | . 8 5 8 . . . . . . . . . . . . . . . . . . . Ballistic Gun 15 | . 16 16 13 21 18 17 17 17 17 17 16 15 15 15 15 15 15 14 15 13 8 4 Peak Build Rating 164 | 8 9 13 34 49 53 81 79 79 79 81 93 97 103 105 104 107 107 119 126 143 161 164 Average Rating 65 | 6 8 12 24 42 51 70 79 79 79 80 89 93 102 103 104 105 105 112 120 137 154 161 On Entrance 78 | . 8 9 13 34 49 53 79 79 79 79 80 93 97 103 104 104 107 95 117 124 143 161 Avg Prop Armor Cover (%) 1 | . . . 2 . . . . . . . . . . . . . . . . . 1 . Naked Turns . | . . . . . . . . . . . . . . . . . . . . . . . Heaviest Build 108 | 10 11 33 35 37 37 43 43 43 43 43 47 46 58 59 59 62 62 63 77 93 108 108 Greatest Support 108 | 25 25 30 45 45 45 55 55 55 55 58 65 65 65 65 65 67 67 73 78 94 108 108 Greatest Overweight (x) 2 | . . 2 2 . . . . . . . 1 . . . . . . . . . . . Average Overweight (x) . | . . . . . . . . . . . . . . . . . . . . . . . Largest Inventory Capacity 3 | 1 2 2 3 3 3 3 3 3 3 3 3 3 3 3 3 3 3 3 3 3 3 3 Average Capacity 2 | . 1 2 2 3 3 3 3 3 3 3 3 3 3 3 3 3 3 3 3 3 3 3 Most Carried 3 | . 2 2 3 3 3 3 2 2 2 3 3 3 3 3 3 3 2 3 3 3 3 3 Average Carried 2 | . 1 1 2 2 2 2 2 2 2 2 2 2 2 2 3 1 2 2 1 2 2 2 Final Capacity 3 | 1 2 2 3 3 3 3 3 3 3 3 3 3 3 3 3 3 3 3 3 3 3 3 Final Carried 3 | . 2 2 3 3 3 2 2 2 2 3 3 2 3 3 3 2 2 2 2 2 3 3 Class Distribution -------------------- 44% | Hacker-Scout 30% | Hacker-Mutant 13% | Scavenger-Scout 8% | Scientist-Scout Dominant Class ---------------- Hacker-Mutant | -10/Materials Hacker-Mutant | -10/Subcaves Hacker-Scout | -8/Materials Hacker-Scout | -7/Factory Scavenger-Scout | -7/Storage Hacker-Scout | -6/Factory Hacker-Scout | -6/Lower Caves Hacker-Scout | -6/Lower Caves Hacker-Scout | -6/Data Miner Hacker-Scout | -5/Proximity Caves Hacker-Scout | -5/Factory Hacker-Scout | -5/Extension Hacker-Scout | -5/Cetus Scavenger-Scout | -5/Archives Scavenger-Scout | -5/Hub_04(d) Scavenger-Scout | -4/Factory Scavenger-Scout | -4/Waste Hacker-Scout | -4/Factory Scientist-Scout | -3/Research Scientist-Scout | -2/Research Scavenger-Scout | -1/Access Hacker-Scout | -1/Command Resources | -11 -10 -10 -8 -7 -7 -6 -6 -6 -6 -5 -5 -5 -5 -5 -5 -4 -4 -4 -3 -2 -1 -1 ----------- Run | Yrd Mat Sub Mat Fac Sto Fac Low Low Dat Pro Fac Ext Cet Arc Hub Fac Was Fac Res Res Acc Com Matter Collected 8571 | 229 212 712 447 366 651 566 428 110 . 414 221 794 173 113 405 29 21 482 255 1095 639 209 Remotely 7064 | . . . 103 366 648 566 428 110 . 414 221 794 173 113 405 29 21 475 255 1095 639 209 Salvage Created 9919 | . 325 838 825 179 778 561 247 125 . 445 140 930 436 329 675 11 . 909 83 1519 305 259 Parts 624 | . 26 74 40 26 44 38 9 13 . 29 22 63 18 15 38 . . 48 3 82 28 8 Haulers Intercepted 8 | . 2 . 4 . 1 . . . . . . . . . . . . . . 1 . . Recyclers Shooed 3 | . . . . . 1 1 . . . . . . . . . . . . . 1 . . Parts Field Recycled . | . . . . . . . . . . . . . . . . . . . . . . . Retrieved Matter . | . . . . . . . . . . . . . . . . . . . . . . . Parts Self-Destructed . | . . . . . . . . . . . . . . . . . . . . . . . Prevented . | . . . . . . . . . . . . . . . . . . . . . . . Parts Restored . | . . . . . . . . . . . . . . . . . . . . . . . Kills | -11 -10 -10 -8 -7 -7 -6 -6 -6 -6 -5 -5 -5 -5 -5 -5 -4 -4 -4 -3 -2 -1 -1 ------- Run | Yrd Mat Sub Mat Fac Sto Fac Low Low Dat Pro Fac Ext Cet Arc Hub Fac Was Fac Res Res Acc Com Combat Hostiles Destroyed 184 | . 7 26 12 9 19 11 4 7 . 14 4 15 6 2 12 . . 14 . 12 7 3 Guns 178 | . 7 26 12 9 19 11 4 7 . 14 4 15 6 2 11 . . 14 . 12 4 1 Cannons 5 | . . . . . . . . . . . . . . . . . . . . . 3 2 Classes Destroyed 19 | . 5 3 4 . 1 1 1 . . 2 . 1 . . 1 . . . . . . . Worker 6 | . 1 . 2 . . 1 . . . . . . . . . . . . . 1 1 . Builder 3 | . . . . . . 1 . . . . 1 . . . 1 . . . . . . . Hauler 8 | . 2 . 4 . 1 . . . . . . . . . . . . . . 1 . . Recycler 1 | . . . . . . . . . . . . 1 . . . . . . . . . . Operator 9 | . . . 1 1 . 3 . . . . . . . 1 . . . 1 . 2 . . Turret 2 | . . 2 . . . . . . . . . . . . . . . . . . . . Watcher 27 | . 3 . 3 2 2 3 . . . . 1 2 1 . 1 . . . 2 4 2 1 Swarmer 39 | . 4 3 . 6 2 2 . 6 . 3 . 2 . . 3 . . 4 . . 4 . Grunt 30 | . 3 . 4 . 7 5 2 . . . 1 1 2 . 2 . . 3 . . . . Brawler 2 | . . . . . . . . . . 1 . 1 . . . . . . . . . . Duelist 3 | . . . 1 . . . 1 . . 1 . . . . . . . . . . . . Protector 2 | . . . . . . . . . . . . . . . 2 . . . . . . . Sentry 38 | . . . 5 3 9 1 . . . 2 3 5 . 3 3 . . . . 4 . . Hunter 17 | . . . 2 . . . . 2 . . . 2 . . 1 . . 1 . 4 2 3 Programmer 18 | . . . . . 1 4 . . . 1 . 2 . . . . . 5 . 4 1 . Behemoth 4 | . . . . . . . 1 . . . . 2 . . . . . 1 . . . . Cetus Guard 4 | . . . . . . . . . . . . . 4 . . . . . . . . . Lightning 1 | . . . . . . . . . . . . . . . 1 . . . . . . . Artisan 1 | . . 1 . . . . . . . . . . . . . . . . . . . . Subdweller 23 | . . 23 . . . . . . . . . . . . . . . . . . . . Thug 3 | . . . . . . . . . . 3 . . . . . . . . . . . . Savage 1 | . . . . . . . . . . 1 . . . . . . . . . . . . Butcher 1 | . . . . . . . . . . 1 . . . . . . . . . . . . Mutant 1 | . . . . . . . . . . 1 . . . . . . . . . . . . Best Kill Streak 10 | . 5 3 7 5 8 4 1 3 . 5 2 8 5 3 5 . . 6 1 10 4 2 Combat Bots Only 8 | . 3 3 3 4 8 3 1 3 . 5 1 7 4 2 5 . . 3 . 4 4 2 Max Kills in Single Turn 3 | . 1 2 2 2 2 2 1 2 . 1 1 3 1 2 2 . . 2 1 2 2 1 Gunslinging 1 | . . 1 . 1 1 1 . 1 . . . 1 . . . . . 1 . . . . Exploded . | . . . . . . . . . . . . . . . . . . . . . . . Melee . | . . . . . . . . . . . . . . . . . . . . . . . Uniques/NPCs Destroyed . | . . . . . . . . . . . . . . . . . . . . . . . Combat | -11 -10 -10 -8 -7 -7 -6 -6 -6 -6 -5 -5 -5 -5 -5 -5 -4 -4 -4 -3 -2 -1 -1 -------- Run | Yrd Mat Sub Mat Fac Sto Fac Low Low Dat Pro Fac Ext Cet Arc Hub Fac Was Fac Res Res Acc Com Hostile Shots Fired 1470 | . 29 195 61 66 143 53 20 21 . 36 29 105 10 2 52 . 1 115 4 174 158 196 Missed 692 | . 9 86 18 42 72 31 7 10 . 14 11 56 7 . 26 . . 62 1 78 88 74 Hits 778 | . 20 109 43 24 71 22 13 11 . 22 18 49 3 2 26 . 1 53 3 96 70 122 Melee 4 | . . . . . . . 2 . . . . . . . . . 1 . . . . 1 Projectile 774 | . 20 109 43 24 71 22 11 11 . 22 18 49 3 2 26 . . 53 3 96 70 121 Critical Strikes 41 | . . 3 4 . . . 1 . . 4 1 2 1 2 4 . 1 2 . 7 5 4 Part Disruptions 3 | . . . . . . . . . . . . . . . 1 . . . . 1 . 1 Actively Blocked 2 | . . . . . . . . . . . . . . . 1 . . . . 1 . . Damage Taken 7664 | . 146 1199 442 139 330 189 193 101 . 287 225 684 22 45 641 . 29 450 36 1259 302 945 Core 5511 | . 114 714 244 101 237 142 154 79 . 220 181 545 17 34 520 . 23 347 19 885 201 734 Absorbed by Shields 1739 | . . . . . . . . . . . . . 20 . . . . . . 584 506 629 Redirected to Core 4639 | . 74 520 228 88 205 135 136 70 . 220 144 474 17 34 420 . 23 311 19 740 188 593 Redirected to Shielding 7 | . 7 . . . . . . . . . . . . . . . . . . . . . Ignored by Resistances 7031 | . 98 709 269 98 247 167 130 76 . 200 163 487 30 32 386 . 20 571 27 1252 700 1369 Regen/Repaired (Parts) 128 | . . . . . . . . . . . . . . . . . . 13 . . . 115 Core Remaining (%) 75 | 100 . 95 97 . 77 . . . . 100 . . . . 60 . . 63 77 10 . . Volleys Fired 610 | . 31 120 50 18 39 28 19 11 . 31 20 54 13 7 27 2 . 30 3 61 37 9 Largest 3 | . 2 2 3 3 3 3 3 3 . 3 3 3 3 3 3 3 . 3 3 3 3 3 Hottest 177 | . 40 120 177 84 84 84 60 60 . 60 101 101 103 103 105 105 . 105 105 105 128 154 Shots Fired 1558 | . 62 233 126 52 107 84 57 33 . 93 60 142 35 19 81 6 . 91 9 172 73 23 Gun 1507 | . 62 233 126 52 107 84 57 33 . 93 60 142 35 19 81 6 . 91 9 172 38 7 Cannon 51 | . . . . . . . . . . . . . . . . . . . . . 35 16 Launcher . | . . . . . . . . . . . . . . . . . . . . . . . Special . | . . . . . . . . . . . . . . . . . . . . . . . Kinetic 1463 | . 62 184 80 52 107 84 57 33 . 93 60 142 35 19 81 6 . 91 9 172 73 23 Thermal 95 | . . 49 46 . . . . . . . . . . . . . . . . . . . Explosive . | . . . . . . . . . . . . . . . . . . . . . . . Electromagnetic . | . . . . . . . . . . . . . . . . . . . . . . . Robot Hit Streak 64 | . 17 25 40 24 47 39 21 18 . 42 39 52 32 12 30 33 . 64 15 48 36 20 Robot Miss Streak 4 | . 2 1 2 2 4 3 1 1 . 1 1 1 1 1 2 . . 1 . 2 1 . Penetration Max 2 | . . . . . 1 . . . . . 1 1 1 1 2 . . 1 . 2 1 1 Secondary Targets 28 | . 1 2 1 1 5 1 . 2 . 3 . 4 2 . . . . 4 . 2 . . Max Gunslinging Chain 2 | . 1 1 1 1 1 1 . 1 . 1 . 1 1 . . . . 2 . 1 . . Shots Hit Robots 1212 | . 45 200 97 38 85 67 52 24 . 80 53 106 32 17 60 3 . 62 6 127 42 16 Core Hits 671 | . 22 57 41 46 133 89 12 11 . 30 17 52 21 8 30 . . 31 4 43 16 8 Critical Kills 48 | . . 1 . . 1 . . 1 . . 2 8 5 3 4 . . 4 . 12 6 1 Critical Parts Destroyed 67 | . . 1 . . . . . . . 1 7 15 4 1 4 . . 5 1 16 11 1 Critical Strikes 131 | . . 3 4 . 1 . . 1 . 1 9 24 10 7 8 . . 9 1 31 18 4 Burn 5 | . . 1 4 . . . . . . . . . . . . . . . . . . . Destroy 123 | . . 2 . . 1 . . 1 . 1 9 24 10 7 8 . . 9 1 31 17 2 Blast 3 | . . . . . . . . . . . . . . . . . . . . . 1 2 Melee Attacks . | . . . . . . . . . . . . . . . . . . . . . . . Impact . | . . . . . . . . . . . . . . . . . . . . . . . Slashing . | . . . . . . . . . . . . . . . . . . . . . . . Piercing . | . . . . . . . . . . . . . . . . . . . . . . . Sneak Attacks . | . . . . . . . . . . . . . . . . . . . . . . . Combat Hostiles . | . . . . . . . . . . . . . . . . . . . . . . . Follow-up Attacks . | . . . . . . . . . . . . . . . . . . . . . . . Damage Inflicted 26585 | . 485 2944 1529 851 2181 2010 1280 492 . 2053 1027 2355 645 410 2014 89 . 1793 177 2657 1095 498 Guns 24621 | . 485 2944 1529 851 2082 1761 1280 492 . 2053 1027 2355 645 410 1722 89 . 1793 177 2542 303 81 Cannons 1123 | . . . . . . . . . . . . . . . . . . . . . 706 417 Explosions 841 | . . . . . 99 249 . . . . . . . . 292 . . . . 115 86 . Melee . | . . . . . . . . . . . . . . . . . . . . . . . Ramming . | . . . . . . . . . . . . . . . . . . . . . . . Kinetic 24492 | . 485 2314 907 851 2082 1761 1280 492 . 2053 1027 2355 645 410 1722 89 . 1793 177 2542 1009 498 Thermal 1252 | . . 630 622 . . . . . . . . . . . . . . . . . . . Explosive 463 | . . . . . 99 249 . . . . . . . . . . . . . 115 . . Electromagnetic 378 | . . . . . . . . . . . . . . . 292 . . . . . 86 . Impact . | . . . . . . . . . . . . . . . . . . . . . . . Slashing . | . . . . . . . . . . . . . . . . . . . . . . . Piercing . | . . . . . . . . . . . . . . . . . . . . . . . Highest Corruption 4 | . 1 1 1 1 1 . . . . . . . . . 2 . 3 4 . 2 1 1 Average Corruption 1 | . 1 1 1 1 1 . . . . . . . . . 1 . 3 3 . 1 1 1 Corruption Purged . | . . . . . . . . . . . . . . . . . . . . . . . Corruption Blocked . | . . . . . . . . . . . . . . . . . . . . . . . Effects 39 | . 2 14 4 . 6 . . . . . . . . . . . . 7 . 6 . . Message Errors 4 | . . 3 . . . . . . . . . . . . . . . . . 1 . . Matter Fused 7 | . 1 4 . . 1 . . . . . . . . . . . . 1 . . . . Heat Flow Errors 4 | . . 1 . . 1 . . . . . . . . . . . . . . 2 . . Energy Discharges 5 | . . 3 1 . 1 . . . . . . . . . . . . . . . . . Data Loss (minor) 9 | . 1 1 1 . 2 . . . . . . . . . . . . 2 . 2 . . Data Loss (major) 3 | . . . 2 . . . . . . . . . . . . . . 1 . . . . Misfires 3 | . . 1 . . . . . . . . . . . . . . . 2 . . . . Alerts 1 | . . . . . 1 . . . . . . . . . . . . . . . . . Weapon Failures 3 | . . 1 . . . . . . . . . . . . . . . 1 . 1 . . Overload Shots . | . . . . . . . . . . . . . . . . . . . . . . . Overflow Damage 46 | . . . . . . 46 . . . . . . . . . . . . . . . . Projectiles . | . . . . . . . . . . . . . . . . . . . . . . . Explosions 46 | . . . . . . 46 . . . . . . . . . . . . . . . . Melee . | . . . . . . . . . . . . . . . . . . . . . . . Knockbacks 8 | . . . . . . . . . . . . . . . . . . . . . 6 2 Impact . | . . . . . . . . . . . . . . . . . . . . . . . Kinetic 8 | . . . . . . . . . . . . . . . . . . . . . 6 2 Secondary . | . . . . . . . . . . . . . . . . . . . . . . . Self-Inflicted Damage 125 | . . . . . . . . . . . . . . . 125 . . . . . . . Shots 2 | . . . . . . . . . . . . . . . 2 . . . . . . . Rammed . | . . . . . . . . . . . . . . . . . . . . . . . Targets Rammed . | . . . . . . . . . . . . . . . . . . . . . . . Kicked . | . . . . . . . . . . . . . . . . . . . . . . . Crushed . | . . . . . . . . . . . . . . . . . . . . . . . Highest Temperature 375 | . . 152 375 . . . . . . . . 10 24 11 22 . . 24 15 184 30 104 Average Temperature 48 | . . 77 100 . . . . . . . . 6 16 7 11 . . 11 6 56 11 44 Received Heat Transfer 1682 | . 60 611 270 48 195 63 24 . . 54 99 72 4 36 99 . . 12 9 18 8 . Siege Activations . | . . . . . . . . . . . . . . . . . . . . . . . Martial Activations . | . . . . . . . . . . . . . . . . . . . . . . . Shielding Activations . | . . . . . . . . . . . . . . . . . . . . . . . Robots Disrupted . | . . . . . . . . . . . . . . . . . . . . . . . Combat Hostiles . | . . . . . . . . . . . . . . . . . . . . . . . Robots Corrupted 1 | . . . . . . . . . . . . . . . 1 . . . . . . . Combat Hostiles 1 | . . . . . . . . . . . . . . . 1 . . . . . . . Parts Fried 1 | . . . . . . . . . . . . . . . 1 . . . . . . . Impact Corruptions . | . . . . . . . . . . . . . . . . . . . . . . . Robots Melted . | . . . . . . . . . . . . . . . . . . . . . . . Combat Hostiles . | . . . . . . . . . . . . . . . . . . . . . . . Parts Melted 5 | . . 1 4 . . . . . . . . . . . . . . . . . . . Heat Transferred 2846 | . . 1255 1591 . . . . . . . . . . . . . . . . . . . Parts Sabotaged . | . . . . . . . . . . . . . . . . . . . . . . . Parts Stolen . | . . . . . . . . . . . . . . . . . . . . . . . Parts Stripped . | . . . . . . . . . . . . . . . . . . . . . . . Power Chain Reactions 1 | . . . . . . . . . . . . . . . . . . . . . 1 . Alert | -11 -10 -10 -8 -7 -7 -6 -6 -6 -6 -5 -5 -5 -5 -5 -5 -4 -4 -4 -3 -2 -1 -1 ------- Run | Yrd Mat Sub Mat Fac Sto Fac Low Low Dat Pro Fac Ext Cet Arc Hub Fac Was Fac Res Res Acc Com Maximum Alert Level 3 | . . . . . 1 . . . . . . . . . 3 1 . . . 1 1 . Low Security (%) 92 | 100 100 . 100 100 76 100 . . . . 100 100 100 100 35 38 100 100 100 87 79 100 Level 1 5 | . . . . . 23 . . . . . . . . . 11 61 . . . 12 20 . Level 2 1 | . . . . . . . . . . . . . . . 34 . . . . . . . Level 3 . | . . . . . . . . . . . . . . . 18 . . . . . . . Level 4 . | . . . . . . . . . . . . . . . . . . . . . . . Level 5 . | . . . . . . . . . . . . . . . . . . . . . . . High Security . | . . . . . . . . . . . . . . . . . . . . . . . Max Security . | . . . . . . . . . . . . . . . . . . . . . . . Peak Influence 806 | . 55 . 79 100 230 180 . . . . 113 192 100 94 806 272 3 139 53 241 280 127 Initial 272 | . . . . . 12 60 . . . . 12 40 . . 4 272 3 . 53 . 6 46 Average 62 | . 11 . 21 32 121 75 . . . . 26 26 42 55 391 157 1 42 12 51 109 83 Influence Increases 7106 | . 249 205 419 311 564 451 105 160 . 311 258 534 180 96 1168 32 . 510 50 677 617 209 Destroy 0b10 Robot/C 3380 | . 140 100 240 180 380 240 80 140 . 200 80 340 140 60 340 . . 280 . 240 140 60 Destroy 0b10 Robot/NC 290 | . 30 . 50 15 15 40 5 . . . 10 15 5 5 25 . . 5 10 40 15 5 Destroy Leader 808 | . 40 . 94 54 126 76 20 20 . 20 32 34 10 . 92 . . 60 4 80 34 12 Allied During Kill 147 | . . . . . . . . . . 1 . 11 18 19 98 . . . . . . . Trap Triggered on 0b10 40 | . . . . . . . . . . . . . . . . . . . . 40 . . Successful Hack 457 | . 24 . 14 32 23 . . . . . 52 9 7 . 21 18 . 10 32 114 57 44 Select Force Hacks 100 | . . . . . . . . . . . . . . . 100 . . . . . . . Disable Machine 188 | . . . 4 . 12 32 . . . . 12 4 . 8 64 8 . 16 . 16 8 4 Destroy Structure 706 | . . . 2 . 8 18 . . . . 42 16 . 4 398 6 . 34 4 87 63 24 Partial Spotted 195 | . . . . 30 . . . . . . 15 . . . 30 . . 30 . 30 15 45 Lose Combat Pursuer 795 | . 15 105 15 . . 45 . . . 90 15 105 . . . . . 75 . 30 285 15 Influence Decreases 7001 | . 249 205 419 274 416 636 105 135 25 286 170 647 180 75 432 775 14 371 189 662 535 201 Entered New Map 920 | . . . . . 25 125 . . 25 . 13 73 . . 17 485 11 . 86 . 9 51 Time Decay 4764 | . 249 205 374 274 376 511 105 135 . 260 157 378 160 75 195 45 3 245 80 447 340 150 Lost Ally 326 | . . . . . . . . . . 26 . 2 20 . 220 . . 40 . 18 . . Purge Threat 991 | . . . 45 . 15 . . . . . . 194 . . . 245 . 86 23 197 186 . Squads Dispatched 31 | . . . . 1 1 3 . . . 1 2 . 1 . 5 1 . 2 1 5 5 3 Investigation 7 | . . . . . . . . . . . . . 1 . 4 . . . . . 1 1 Extermination 18 | . . . . . 1 3 . . . . 1 . . . 1 . . 2 1 5 3 1 Reinforcement 4 | . . . . . . . . . . . 1 . . . . 1 . . . . 1 1 Assault 1 | . . . . . . . . . . 1 . . . . . . . . . . . . Garrison 1 | . . . . 1 . . . . . . . . . . . . . . . . . . Intercept . | . . . . . . . . . . . . . . . . . . . . . . . Searches Triggered . | . . . . . . . . . . . . . . . . . . . . . . . Unchained Authorized 3 | . . . . . . . . . . . . . . . . . . 1 1 1 . . Data Miner Redirects 1 | . . . . . . . . . . . . . . . . . . . . . 1 . Construction Impeded . | . . . . . . . . . . . . . . . . . . . . . . . Haulers Reinforced . | . . . . . . . . . . . . . . . . . . . . . . . Active Scanning Responses . | . . . . . . . . . . . . . . . . . . . . . . . Cargo Convoy Interrupts . | . . . . . . . . . . . . . . . . . . . . . . . Stealth | -11 -10 -10 -8 -7 -7 -6 -6 -6 -6 -5 -5 -5 -5 -5 -5 -4 -4 -4 -3 -2 -1 -1 --------- Run | Yrd Mat Sub Mat Fac Sto Fac Low Low Dat Pro Fac Ext Cet Arc Hub Fac Was Fac Res Res Acc Com Distress Signals 10 | . . . 1 1 1 1 . . . . . 1 1 . . . . . . 2 1 1 Communications Jammed . | . . . . . . . . . . . . . . . . . . . . . . . Distress Signals . | . . . . . . . . . . . . . . . . . . . . . . . Times Spotted 342 | . 14 34 17 12 22 27 2 8 . 22 9 26 6 4 21 1 3 24 5 29 34 22 Peak Tracking Total 11 | . 3 6 4 3 8 4 1 3 . 7 2 8 4 2 10 1 3 7 3 10 11 10 Tactical Retreats 29 | . 1 3 1 . . 2 . . . 2 1 4 . . . . . 2 . 2 10 1 Traps | -11 -10 -10 -8 -7 -7 -6 -6 -6 -6 -5 -5 -5 -5 -5 -5 -4 -4 -4 -3 -2 -1 -1 ------- Run | Yrd Mat Sub Mat Fac Sto Fac Low Low Dat Pro Fac Ext Cet Arc Hub Fac Was Fac Res Res Acc Com Traps Triggered 33 | . 3 2 1 4 . 2 . . . . . 4 . . 1 1 . 3 . 3 1 8 Indirectly . | . . . . . . . . . . . . . . . . . . . . . . . Trap Hack Attempts . | . . . . . . . . . . . . . . . . . . . . . . . Triggered . | . . . . . . . . . . . . . . . . . . . . . . . Disarmed 8 | . 5 . . . . . . . . . . 3 . . . . . . . . . . Reprogrammed 11 | . . . 1 . . . . . . . . . . . . . . . . 10 . . Reused 4 | . . . . . . . . . . . . . . . . . . . . 4 . . Traps Extracted . | . . . . . . . . . . . . . . . . . . . . . . . Installed . | . . . . . . . . . . . . . . . . . . . . . . . Triggered 4 | . . . . . . . . . . . . . . . . . . . . 4 . . Objects Rigged 1 | . . . . . . . . . . . . . . . 1 . . . . . . . Machines | -11 -10 -10 -8 -7 -7 -6 -6 -6 -6 -5 -5 -5 -5 -5 -5 -4 -4 -4 -3 -2 -1 -1 ---------- Run | Yrd Mat Sub Mat Fac Sto Fac Low Low Dat Pro Fac Ext Cet Arc Hub Fac Was Fac Res Res Acc Com Machines Disabled 48 | . . 1 1 . 3 8 . . . . 3 1 . 2 16 2 . 4 . 4 2 1 Max in Single Turn 9 | . . 1 1 . 1 6 . . . . 2 1 . 1 9 1 . 1 . 2 2 1 Garrison Access 4 | . . . 1 1 . . . . . . . . . . 1 . . 1 . . . . Network Hub 4 | . . . . . . . . . . . . . . . 4 . . . . . . . Machines Repaired . | . . . . . . . . . . . . . . . . . . . . . . . Machines Dismantled . | . . . . . . . . . . . . . . . . . . . . . . . Machines Sabotaged 2 | . . . . . . . . . . . . . . . 2 . . . . . . . Overloaded Fab Kills . | . . . . . . . . . . . . . . . . . . . . . . . Hacking | -11 -10 -10 -8 -7 -7 -6 -6 -6 -6 -5 -5 -5 -5 -5 -5 -4 -4 -4 -3 -2 -1 -1 --------- Run | Yrd Mat Sub Mat Fac Sto Fac Low Low Dat Pro Fac Ext Cet Arc Hub Fac Was Fac Res Res Acc Com Machines Accessed 95 | . 6 1 9 11 8 1 . . 4 . 3 6 2 . 7 1 . 6 6 11 9 4 Terminals 63 | . 6 . 7 5 8 . . . . . . 6 2 . 6 1 . 2 5 6 7 2 Fabricators 8 | . . . . 2 . . . . . . 1 . . . . . . 1 . 3 1 . Repair Stations 5 | . . . . 1 . . . . . . . . . . . . . 1 . . 1 2 Recycling Units 3 | . . . . 2 . . . . . . 1 . . . . . . . . . . . Scanalyzers 5 | . . . 1 . . . . . . . 1 . . . . . . 1 1 1 . . Garrison Access 6 | . . . 1 1 . 1 . . . . . . . . 1 . . 1 . 1 . . Total Hacks 282 | . 17 4 25 25 15 3 . . 30 . 9 19 5 . 12 10 . 23 15 39 22 9 Successful 158 | . 11 4 11 13 9 . . . 30 . 8 10 5 . 7 7 . 10 4 20 6 3 Failed 124 | . 6 . 14 12 6 3 . . . . 1 9 . . 5 3 . 13 11 19 16 6 Catastrophic 27 | . 1 . 1 1 2 . . . . . . 1 . . 2 1 . 4 2 6 4 2 Database Lockouts . | . . . . . . . . . . . . . . . . . . . . . . . Manual 82 | . 1 . 10 15 1 . . . . . 5 8 1 . 8 8 . 7 3 13 2 . Terminals 174 | . 17 . 19 12 15 . . . . . . 19 5 . 11 10 . 5 13 25 20 3 Fabricators 19 | . . . . 3 . . . . . . 3 . . . . . . 2 . 10 1 . Repair Stations 13 | . . . . 2 . . . . . . . . . . . . . 4 . . 1 6 Recycling Units 9 | . . . . 5 . . . . . . 4 . . . . . . . . . . . Scanalyzers 18 | . . . 2 . . . . . . . 2 . . . . . . 10 2 2 . . Garrison Access 15 | . . . 4 3 . 3 . . . . . . . . 1 . . 2 . 2 . . Terminal Hacks 108 | . 11 4 8 7 8 . . . 30 . . 9 5 . 1 5 . 1 3 10 5 1 Record 20 | . 1 4 1 . . . . . 10 . . . 4 . . . . . . . . . Part Schematic 14 | . . . . . 1 . . . 13 . . . . . . . . . . . . . Robot Schematic 4 | . . . . . . . . . 4 . . . . . . . . . . . . . Robot Analysis 3 | . . . . 1 . . . . . . . 1 . . . . . . . 1 . . Prototype ID Bank 15 | . 3 . 2 2 2 . . . 3 . . 2 . . . 1 . . . . . . Open Door 4 | . . . . . 3 . . . . . . . 1 . . . . . . . . . Level Access Points 3 | . . . . . . . . . . . . . . . . . . . 1 1 1 . Branch Access Points 5 | . . . 1 . 1 . . . . . . . . . 1 . . . . 1 1 . Terminal Index 1 | . . . . 1 . . . . . . . . . . . . . . . . . . Unreport Threat 20 | . 1 . 3 1 1 . . . . . . 3 . . . 3 . 1 2 3 2 . Locate Traps 6 | . 1 . . 1 . . . . . . . 1 . . . . . . . 2 1 . Disarm Traps 4 | . 2 . . . . . . . . . . 2 . . . . . . . . . . Reprogram Traps 3 | . . . 1 . . . . . . . . . . . . . . . . 2 . . Dispatch Records 1 | . 1 . . . . . . . . . . . . . . . . . . . . . Transport Status 1 | . 1 . . . . . . . . . . . . . . . . . . . . . Hauler Manifests 1 | . 1 . . . . . . . . . . . . . . . . . . . . . Registered Prototypes 1 | . . . . 1 . . . . . . . . . . . . . . . . . . Zone Layout 1 | . . . . . . . . . . . . . . . . 1 . . . . . . Disengage Seal 1 | . . . . . . . . . . . . . . . . . . . . . . 1 Fabricator Hacks 9 | . . . . 1 . . . . . . 2 . . . . . . . . 6 . . Load Schematic 4 | . . . . . . . . . . . 1 . . . . . . . . 3 . . Build 5 | . . . . 1 . . . . . . 1 . . . . . . . . 3 . . Repair Station Hacks 6 | . . . . 1 . . . . . . . . . . . . . 2 . . 1 2 Scan Component 3 | . . . . . . . . . . . . . . . . . . 1 . . 1 1 Repair 2 | . . . . . . . . . . . . . . . . . . 1 . . . 1 Refit 1 | . . . . 1 . . . . . . . . . . . . . . . . . . Recycling Unit Hacks 1 | . . . . 1 . . . . . . . . . . . . . . . . . . Retrieve Components 1 | . . . . 1 . . . . . . . . . . . . . . . . . . Scanalyzer 11 | . . . 2 . . . . . . . 2 . . . . . . 5 1 1 . . Retrieve Study 11 | . . . 2 . . . . . . . 2 . . . . . . 5 1 1 . . Garrison Access Hacks 4 | . . . 1 1 . . . . . . . . . . 1 . . 1 . . . . Seal Access 4 | . . . 1 1 . . . . . . . . . . 1 . . 1 . . . . Unauthorized Hacks 19 | . . . . 2 1 . . . . . 4 1 . . 5 2 . 1 . 3 . . Terminals 10 | . . . . . 1 . . . . . . 1 . . 5 2 . . . 1 . . Botnet 3 | . . . . . 1 . . . . . . 1 . . . 1 . . . . . . Detonate 1 | . . . . . . . . . . . . . . . 1 . . . . . . . Disrupt 2 | . . . . . . . . . . . . . . . . 1 . . . 1 . . Sabotage 4 | . . . . . . . . . . . . . . . 4 . . . . . . . Fabricators 4 | . . . . 1 . . . . . . 1 . . . . . . . . 2 . . Liberate 1 | . . . . . . . . . . . . . . . . . . . . 1 . . Fabnet 3 | . . . . 1 . . . . . . 1 . . . . . . . . 1 . . Repair Stations 1 | . . . . 1 . . . . . . . . . . . . . . . . . . Mechanics 1 | . . . . 1 . . . . . . . . . . . . . . . . . . Recycling Units 3 | . . . . . . . . . . . 3 . . . . . . . . . . . Monitor 1 | . . . . . . . . . . . 1 . . . . . . . . . . . Reject 1 | . . . . . . . . . . . 1 . . . . . . . . . . . Recyclers 1 | . . . . . . . . . . . 1 . . . . . . . . . . . Scanalyzers 1 | . . . . . . . . . . . . . . . . . . 1 . . . . Researchers 1 | . . . . . . . . . . . . . . . . . . 1 . . . . Garrison Access . | . . . . . . . . . . . . . . . . . . . . . . . Data Cores Recovered 6 | . . . 1 1 . . . . . . . . . . 1 . . 1 . 2 . . Used 2 | . . . . 1 . . . . . . . . . . 1 . . . . . . . Hacking Detections 73 | . 5 . 9 8 7 1 . . . . 2 6 1 . 3 1 . 3 5 10 9 3 Full Trace Events 3 | . . . 1 . . . . . . . . . 1 . . . . . . . 1 . Feedback Events 1 | . . . 1 . . . . . . . . . . . . . . . . . . . Corruption 1 | . . . 1 . . . . . . . . . . . . . . . . . . . Feedback Blocked . | . . . . . . . . . . . . . . . . . . . . . . . Robot Schematics Acquired 4 | . . . . . . . . . 4 . . . . . . . . . . . . . Robots Built 2 | . . . . . . . . . . . . . . . . . . . . 2 . . Authchips . | . . . . . . . . . . . . . . . . . . . . . . . Time 76 | . . . . . . . . . . . . . . . . . . . . 76 . . Total Robot Build Rating 10 | . . . . . . . . . . . . . . . . . . . . 10 . . Part Schematics Acquired 14 | . . . . . 1 . . . 13 . . . . . . . . . . . . . Parts Built 6 | . . . . 2 . . . . . . 2 . . . . . . . . 2 . . Authchips . | . . . . . . . . . . . . . . . . . . . . . . . Time 338 | . . . . 42 . . . . . . 106 . . . . . . . . 190 . . Total Part Build Rating 32 | . . . . 8 . . . . . . 12 . . . . . . . . 12 . . Part Studies Acquired 10 | . . . 2 . . . . . . . 2 . . . . . . 4 1 1 . . Parts Repaired 2 | . . . . . . . . . . . . . . . . . . 1 . . . 1 Time 33 | . . . . . . . . . . . . . . . . . . 19 . . . 14 Parts Recycled . | . . . . . . . . . . . . . . . . . . . . . . . Recycled Matter . | . . . . . . . . . . . . . . . . . . . . . . . Retrieved Matter . | . . . . . . . . . . . . . . . . . . . . . . . Retrieved Components 2 | . . . . 2 . . . . . . . . . . . . . . . . . . Parts Scanalyzed . | . . . . . . . . . . . . . . . . . . . . . . . Part Schematics Acquired . | . . . . . . . . . . . . . . . . . . . . . . . Parts Damaged . | . . . . . . . . . . . . . . . . . . . . . . . Bothacking | -11 -10 -10 -8 -7 -7 -6 -6 -6 -6 -5 -5 -5 -5 -5 -5 -4 -4 -4 -3 -2 -1 -1 ------------ Run | Yrd Mat Sub Mat Fac Sto Fac Low Low Dat Pro Fac Ext Cet Arc Hub Fac Was Fac Res Res Acc Com Used RIF Installer . | . . . . . . . . . . . . . . . . . . . . . . . Robots Hacked 8 | . . . . . . 2 . 2 . . . 1 . 1 . . . 2 . . . . Non-combat . | . . . . . . . . . . . . . . . . . . . . . . . Combat 8 | . . . . . . 2 . 2 . . . 1 . 1 . . . 2 . . . . Robot Hacks Applied . | . . . . . . . . . . . . . . . . . . . . . . . Relay Couplers Released . | . . . . . . . . . . . . . . . . . . . . . . . Fabnet Peak Effective % 3 | . . . . . . 3 3 3 3 1 1 1 1 1 1 3 3 3 1 . . . Autooverrided 8 | . . . . . . 2 . 2 . . . 1 . 1 . . . 2 . . . . Robots Rewired 2 | . . . . . . . . . . 2 . . . . . . . . . . . . Allies Hacked 2 | . . . . . . . . . . . . 1 . . . . . 1 . . . . Hacks Repelled . | . . . . . . . . . . . . . . . . . . . . . . . Allies | -11 -10 -10 -8 -7 -7 -6 -6 -6 -6 -5 -5 -5 -5 -5 -5 -4 -4 -4 -3 -2 -1 -1 -------- Run | Yrd Mat Sub Mat Fac Sto Fac Low Low Dat Pro Fac Ext Cet Arc Hub Fac Was Fac Res Res Acc Com Total Allies 31 | . . . . . . 2 . 2 . 2 . 15 5 1 . . . 2 . 2 . . Largest Group 12 | . . . . . . 1 . 2 . 2 . 8 12 12 11 . . 1 . 2 . . Highest-Rated Group 800 | . . . . . . 47 . 82 . 51 . 356 800 800 641 . . 10 . 82 . . Highest-Rated Ally 159 | . . . . . . 47 . 41 . 31 . 159 159 159 96 . . 10 . 41 . . Total Orders . | . . . . . . . . . . . . . . . . . . . . . . . Ally Attacks 126 | . . . . . . 4 . . . 8 . 28 13 7 55 . . 5 . 6 . . Total Damage 2659 | . . . . . . 26 . . . 123 . 503 261 215 1331 . . 77 . 123 . . Kills 17 | . . . . . . 1 . . . 2 . 4 1 1 8 . . . . . . . Allies Corrupted 5 | . . . . . . . . . . . . . . . 5 . . . . . . . Allies Melted 1 | . . . . . . . . . . . . 1 . . . . . . . . . . Intel | -11 -10 -10 -8 -7 -7 -6 -6 -6 -6 -5 -5 -5 -5 -5 -5 -4 -4 -4 -3 -2 -1 -1 ------- Run | Yrd Mat Sub Mat Fac Sto Fac Low Low Dat Pro Fac Ext Cet Arc Hub Fac Was Fac Res Res Acc Com Active Infowar (turns) 11558 | 64 674 2764 778 488 530 757 402 190 48 640 336 872 256 102 266 95 30 477 240 805 535 209 Sensors 11351 | 64 674 2764 778 488 530 757 402 190 48 640 336 872 256 102 266 95 30 477 240 805 535 2 Terrain 7452 | . . . 174 488 530 757 402 190 48 640 336 872 256 102 266 95 30 477 240 805 535 209 Structural 3533 | . 177 2754 602 . . . . . . . . . . . . . . . . . . . Traps 441 | . . . 441 . . . . . . . . . . . . . . . . . . . Robot Analysis Total 3 | . . . . 1 . . . . . . . 1 . . . . . . . 1 . . Derelict Logs Recovered 4 | . . 1 . . . . 1 1 . 1 . . . . . . . . . . . . Drone Launches . | . . . . . . . . . . . . . . . . . . . . . . . Drone Recoveries . | . . . . . . . . . . . . . . . . . . . . . . . Exploration | -11 -10 -10 -8 -7 -7 -6 -6 -6 -6 -5 -5 -5 -5 -5 -5 -4 -4 -4 -3 -2 -1 -1 ------------- Run | Yrd Mat Sub Mat Fac Sto Fac Low Low Dat Pro Fac Ext Cet Arc Hub Fac Was Fac Res Res Acc Com Turns Passed 11584 | 90 674 2764 778 488 530 757 402 190 48 640 336 872 256 102 266 95 30 477 240 805 535 209 Spaces Moved 14394 | 67 458 1818 900 784 669 1088 614 259 86 867 535 898 206 136 622 218 98 914 531 1310 952 364 Core 9 | 2 . 7 . . . . . . . . . . . . . . . . . . . . Treads 4 | . . 4 . . . . . . . . . . . . . . . . . . . . Legs 2364 | 65 458 1807 34 . . . . . . . . . . . . . . . . . . . Wheels 107 | . . . 107 . . . . . . . . . . . . . . . . . . . Hover 11910 | . . . 759 784 669 1088 614 259 86 867 535 898 206 136 622 218 98 914 531 1310 952 364 Flight . | . . . . . . . . . . . . . . . . . . . . . . . Fastest Speed 24 | 50 120 120 48 48 48 48 56 56 56 55 24 24 24 24 24 24 30 30 36 32 40 40 Average Speed 55 | 117 120 126 56 48 48 53 56 56 56 55 27 24 24 24 24 28 30 34 36 36 40 40 Slowest Speed 260 | 120 120 260 190 48 48 56 56 56 56 56 112 24 24 24 24 30 30 43 36 44 44 40 Overloaded Moves . | . . . . . . . . . . . . . . . . . . . . . . . Propulsion Burnouts . | . . . . . . . . . . . . . . . . . . . . . . . Robots Hopped . | . . . . . . . . . . . . . . . . . . . . . . . Potential Cave-ins 2 | . . . . . . . . . . . . . . . . . . . . . 2 . Cave-ins Triggered . | . . . . . . . . . . . . . . . . . . . . . . . Exploration Rate (%) 52 | 4 62 71 64 21 79 31 92 51 73 92 15 90 84 86 62 6 95 26 18 34 31 21 Regions Visited 22 Branch Regions 11 Pre-discovered Areas 3 | . . 2 . . . . . . 1 . . . . . . . . . . . . . Known Exits Taken 20 | 1 1 1 1 1 1 1 1 1 1 1 1 1 1 1 1 . . 1 1 1 1 . Unknown Exits Taken . | . . . . . . . . . . . . . . . . . . . . . . . Scrap Searched 14 | . . 8 . . . . 2 . . 4 . . . . . . . . . . . . Spaces Dug 21 | . . . . . . . . . . . . . . . . . . 6 . 4 10 1 Terrain Destroyed 534 | . . . . . 7 23 . 1 . . 36 18 . 4 352 3 . 12 2 35 33 8 Melee . | . . . . . . . . . . . . . . . . . . . . . . . Projectile 122 | . . . . . 1 . . 1 . . 12 17 . 4 18 3 . 12 2 22 22 8 AOE 411 | . . . . . 6 23 . . . . 24 . . . 334 . . . . 13 11 . Terrain Rammed . | . . . . . . . . . . . . . . . . . . . . . . . Walls Destroyed . | . . . . . . . . . . . . . . . . . . . . . . . Machines Disabled . | . . . . . . . . . . . . . . . . . . . . . . . Actions | -11 -10 -10 -8 -7 -7 -6 -6 -6 -6 -5 -5 -5 -5 -5 -5 -4 -4 -4 -3 -2 -1 -1 --------- Run | Yrd Mat Sub Mat Fac Sto Fac Low Low Dat Pro Fac Ext Cet Arc Hub Fac Was Fac Res Res Acc Com Total 16881 | 74 528 2078 1070 859 799 1205 638 284 85 979 682 1450 385 190 677 248 97 1006 573 1517 1046 411 Wait 1105 | . 19 36 38 13 60 29 1 3 . 46 89 445 157 34 19 . . 21 22 54 2 17 Move 14371 | 66 457 1817 899 783 668 1087 613 258 85 866 534 895 205 135 621 218 97 913 530 1309 951 364 Hop . | . . . . . . . . . . . . . . . . . . . . . . . Pick Up 56 | . 4 7 4 3 6 2 . . . 5 4 5 . 1 . 1 . 1 . 4 5 4 Fast Attach 136 | 8 3 11 25 9 3 14 . . . 2 9 1 2 3 . 2 . 18 4 15 6 1 Attach 28 | . . 1 . 2 4 1 . . . . 1 1 . . . . . 1 2 11 3 1 Detach 53 | . . 6 1 5 1 6 . . . . 4 1 1 . . 2 . 4 5 13 4 . Swap 13 | . . 1 2 1 . 2 . . . . 1 . . . . . . 1 . 3 2 . Drop 155 | . 5 18 25 11 8 16 . . . 5 12 6 1 4 . 4 . 6 2 17 11 4 Fire 610 | . 31 120 50 18 39 28 19 11 . 31 20 54 13 7 27 2 . 30 3 61 37 9 Melee . | . . . . . . . . . . . . . . . . . . . . . . . Ram . | . . . . . . . . . . . . . . . . . . . . . . . Kick . | . . . . . . . . . . . . . . . . . . . . . . . Crush . | . . . . . . . . . . . . . . . . . . . . . . . Escape Stasis 13 | . . . . . . . . . . . . 2 . . . . . . . . . 11 Rewire 6 | . . . . . . . . . . 6 . . . . . . . . . . . . Trap . | . . . . . . . . . . . . . . . . . . . . . . . Miscellaneous 335 | . 9 61 26 14 10 20 5 12 . 18 8 40 6 6 10 19 . 11 5 30 25 . Route ------- -11/Scrapyard -10/Materials (discovered 3 exits: *Mat / *Min / *Sub) -10/Subcaves (discovered 3 exits: *Mat x2 / *Rec) -8/Materials (discovered 2 exits: *Fac x2) -7/Factory (discovered 5 exits: Fac x3 / *Sto / Low) -7/Storage (discovered 2 exits: *Fac / Rec) -6/Factory (discovered 2 exits: *Fac / *Low) -6/Lower Caves -6/Lower Caves -6/Data Miner -5/Proximity Caves -5/Factory (discovered 3 exits: Fac / Upp / *Ext) -5/Extension (discovered 3 exits: *Fac x2 / *Cet) -5/Cetus (discovered 2 exits: *Fac / *Arc) -5/Archives (discovered 3 exits: *Fac / *Hub x2) -5/Hub_04(d) (discovered 2 exits: *Fac x2) -4/Factory -4/Waste -4/Factory (discovered 2 exits: *Res / *Arm) -3/Research (discovered 3 exits: *Res x3) -2/Research (discovered 5 exits: *Acc x3 / Qua x2) -1/Access (discovered 2 exits: Sur / *Com) -1/Command (discovered 1 exit: *Sur) History --------- Turn | Location | Event 9 | -11/Scrapyard | Upgraded with Propulsion slot (x1) 9 | -11/Scrapyard | Upgraded with Weapon slot (x1) 10 | -11/Scrapyard | Identified exit to Materials 10 | -11/Scrapyard | Discovered exit to Materials (range 17) 18 | -11/Scrapyard | Upgraded with Utility slot (x2) 91 | -11/Scrapyard | Entered Materials 301 | -10/Materials | Build established: Hacker-Mutant 330 | -10/Materials | Identified exit to Mines 330 | -10/Materials | Discovered exit to Mines (range 8) 575 | -10/Materials | Identified exit to Materials 575 | -10/Materials | Discovered exit to Materials (range 18) 713 | -10/Materials | Identified exit to Subcaves 713 | -10/Materials | Discovered exit to Subcaves (range 6) 765 | -10/Materials | Entered Subcaves 766 | -10/Subcaves | Approached by a straggling Scientist 767 | -10/Subcaves | Reached level 2 803 | -10/Subcaves | Learned location of Zion (-7) 803 | -10/Subcaves | Met a Zionite searching for "candidates" 884 | -10/Subcaves | Upgraded with Utility slot (x1) 943 | -10/Subcaves | A Subdweller sparked back to life 943 | -10/Subcaves | A Subdweller sparked back to life 1783 | -10/Subcaves | Shifting Twisted Machinery released Sub. Laser 1785 | -10/Subcaves | Identified exit to Materials 1785 | -10/Subcaves | Discovered exit to Materials (range 11) 1804 | -10/Subcaves | Discovered exit to Materials (range 14) 1808 | -10/Subcaves | Shifting Twisted Machinery released Mak. Hacking Suite 1822 | -10/Subcaves | Shifting Twisted Machinery released Battle Cannon 2552 | -10/Subcaves | Visited Clippyterm 2555 | -10/Subcaves | Learned 40 Factory zone layouts 3009 | -10/Subcaves | Ambushed by Subdwellers from Twisted Machinery 3134 | -10/Subcaves | Identified exit to Recycling 3134 | -10/Subcaves | Discovered exit to Recycling (range 17) 3156 | -10/Subcaves | A swath of the cavern ceiling suddenly collapsed 3529 | -10/Subcaves | Entered Materials 3531 | -8/Materials | Reached level 3 3531 | -8/Materials | Reached level 4 3531 | -8/Materials | Reached level 5 3531 | -8/Materials | Reached level 6 3607 | -8/Materials | Upgraded with Weapon slot (x1) 3611 | -8/Materials | Upgraded with Utility slot (x1) 3774 | -8/Materials | Upgraded with Propulsion slot (x2) 3799 | -8/Materials | Reached level 7 4114 | -8/Materials | Identified exit to Factory 4114 | -8/Materials | Discovered exit to Factory (range 13) 4300 | -8/Materials | Discovered exit to Factory (range 15) 4307 | -8/Materials | Entered Factory 4308 | -7/Factory | Identified exit to Lower Caves 4308 | -7/Factory | Identified exit to Factory 4309 | -7/Factory | Reached level 8 4309 | -7/Factory | Reached level 9 4383 | -7/Factory | Garrison activated, responded to threat 4409 | -7/Factory | Reached level 10 4422 | -7/Factory | Build established: Hacker-Scout 4539 | -7/Factory | Upgraded with Power slot (x1) 4539 | -7/Factory | Upgraded with Utility slot (x1) 4565 | -7/Factory | Fabricated Imp. Medium Armor Plating (x2) 4750 | -7/Factory | Identified exit to Storage 4750 | -7/Factory | Discovered exit to Storage (range 5) 4795 | -7/Factory | Entered Storage 4797 | -7/Storage | Reached level 11 4929 | -7/Storage | Reached level 12 4935 | -7/Storage | Upgraded with Utility slot (x1) 5031 | -7/Storage | Discovered exit to Factory (range 17) 5115 | -7/Storage | Build established: Scavenger-Scout 5173 | -7/Storage | Discovered exit to Recycling (range 15) 5197 | -7/Storage | Destroyed 8 combat bots 5270 | -7/Storage | Reached level 13 5325 | -7/Storage | Entered Factory 5327 | -6/Factory | Reached level 14 5396 | -6/Factory | Local machine network offline 5419 | -6/Factory | Build established: Hacker-Scout 5450 | -6/Factory | Upgraded with Utility slot (x1) 5748 | -6/Factory | Identified exit to Factory 5748 | -6/Factory | Discovered exit to Factory (range 5) 5977 | -6/Factory | Reached level 15 6073 | -6/Factory | Identified exit to Lower Caves 6073 | -6/Factory | Discovered exit to Lower Caves (range 17) 6082 | -6/Factory | Entered Lower Caves 6092 | -6/Lower Caves | Spotted B-75 Beast 6116 | -6/Lower Caves | Destroyed B-75 Beast 6165 | -6/Lower Caves | Learned 8 Factory zone layouts 6339 | -6/Lower Caves | Encountered a Warlord checkpoint 6458 | -6/Lower Caves | Identified exit to Lower Caves 6458 | -6/Lower Caves | Discovered exit to Lower Caves (range 17) 6484 | -6/Lower Caves | Entered another Lower Caves area 6486 | -6/Lower Caves | Reached level 16 6536 | -6/Lower Caves | Identified exit to Data Miner 6674 | -6/Lower Caves | Entered Data Miner 6674 | -6/Data Miner | Identified exit to Proximity Caves 6674 | -6/Data Miner | Discovered exit to Proximity Caves (range 6) 6683 | -6/Data Miner | Met Data Miner 6683 | -6/Data Miner | Reached level 17 6697 | -6/Data Miner | Learned location of Section 7 (-2) 6697 | -6/Data Miner | Acquired the access code to Warlord's prototype stash 6708 | -6/Data Miner | Received God Mode back door access code from Data Miner 6722 | -6/Data Miner | Entered Proximity Caves 6936 | -5/Proximity Caves | Learned location of 1 exit from Factory 6972 | -5/Proximity Caves | Attacked by a faux Warlord 7084 | -5/Proximity Caves | Attracted the attention of an 0b10 outpost 7090 | -5/Proximity Caves | Discovered exit to Factory (range 12) 7109 | -5/Proximity Caves | Reached level 18 7362 | -5/Proximity Caves | Entered Factory 7363 | -5/Factory | Identified exit to Upper Caves 7364 | -5/Factory | Identified exit to Factory 7364 | -5/Factory | Reached level 19 7410 | -5/Factory | Upgraded with Propulsion slot (x1) 7493 | -5/Factory | Fabricated Hyp. Coil Gun (x2) 7667 | -5/Factory | Reached level 20 7694 | -5/Factory | Identified exit to Extension 7694 | -5/Factory | Discovered exit to Extension (range 13) 7698 | -5/Factory | Entered Extension 7701 | -5/Extension | Disrupted transfer network 7715 | -5/Extension | Rescued a captive Derelict 7718 | -5/Extension | Rescued a captive Derelict 7718 | -5/Extension | Rescued a captive Derelict 7734 | -5/Extension | Rescued a captive Derelict 7736 | -5/Extension | Rescued a captive Derelict 8132 | -5/Extension | Spotted B-75 Beast 8152 | -5/Extension | Destroyed B-75 Beast 8157 | -5/Extension | Spotted B-75 Beast 8315 | -5/Extension | Reached level 21 8349 | -5/Extension | Destroyed B-75 Beast 8354 | -5/Extension | Discovered exit to Factory (range 14) 8370 | -5/Extension | Destroyed 7 combat bots 8383 | -5/Extension | Rescued a captive Derelict 8385 | -5/Extension | Rescued a captive Derelict 8386 | -5/Extension | Rescued a captive Derelict 8389 | -5/Extension | Rescued a captive Derelict 8389 | -5/Extension | Rescued a captive Derelict 8399 | -5/Extension | Upgraded with Utility slot (x1) 8438 | -5/Extension | Rescued A7 8441 | -5/Extension | Rescued a captive Derelict 8442 | -5/Extension | Rescued a captive Derelict 8445 | -5/Extension | Rescued a captive Derelict 8447 | -5/Extension | Rescued a captive Derelict 8448 | -5/Extension | Rescued a captive Derelict 8451 | -5/Extension | Rescued a captive Derelict 8454 | -5/Extension | Discovered exit to Factory (range 10) 8454 | -5/Extension | Identified exit to Cetus 8454 | -5/Extension | Discovered exit to Cetus (range 6) 8570 | -5/Extension | Entered Cetus 8570 | -5/Cetus | Accompanied by 8 allies (A7) 8574 | -5/Cetus | Spotted Cetus Guard 8574 | -5/Cetus | Spotted Cetus Guard 8575 | -5/Cetus | Acquired a Cetus Manufacturing Module code from A7 8575 | -5/Cetus | Destroyed Cetus Guard 8580 | -5/Cetus | Spotted Cetus Guard 8580 | -5/Cetus | Spotted Cetus Guard 8587 | -5/Cetus | Destroyed Cetus Guard 8591 | -5/Cetus | Destroyed Cetus Guard 8595 | -5/Cetus | Destroyed Cetus Guard 8615 | -5/Cetus | Discovered exit to Factory (range 19) 8658 | -5/Cetus | Started Cetus Manufacturing Module 8661 | -5/Cetus | Escorted A7 to Cetus Mainframe 8663 | -5/Cetus | Identified exit to Archives 8663 | -5/Cetus | Discovered exit to Archives (range 19) 8683 | -5/Cetus | Manufactured an Enhanced Grunt 8708 | -5/Cetus | Manufactured an Enhanced Grunt 8733 | -5/Cetus | Manufactured an Enhanced Grunt 8758 | -5/Cetus | Manufactured an Enhanced Grunt 8783 | -5/Cetus | Manufactured an Enhanced Grunt 8826 | -5/Cetus | Entered Archives 8826 | -5/Archives | Accompanied by 12 allies (A7) 8831 | -5/Archives | Received a hacking code to weaken MAIN.C 8833 | -5/Archives | Local machine network offline 8838 | -5/Archives | Reached level 22 8853 | -5/Archives | Discovered exit to Factory (range 14) 8865 | -5/Archives | Identified exit to Hub_04(d) 8865 | -5/Archives | Discovered exit to Hub_04(d) (range 20) 8869 | -5/Archives | Discovered exit to Hub_04(d) (range 20) 8928 | -5/Archives | Entered Hub_04(d) 8928 | -5/Hub_04(d) | Accompanied by 11 allies 8931 | -5/Hub_04(d) | Network Hub disabled 8937 | -5/Hub_04(d) | Spotted Lightning 9043 | -5/Hub_04(d) | Discovered exit to Factory (range 10) 9049 | -5/Hub_04(d) | Network Hub disabled 9061 | -5/Hub_04(d) | Spotted Lightning 9072 | -5/Hub_04(d) | Spotted Lightning 9074 | -5/Hub_04(d) | Spotted Lightning 9106 | -5/Hub_04(d) | Destroyed Lightning 9131 | -5/Hub_04(d) | Lost 5 allies 9145 | -5/Hub_04(d) | Network Hub disabled 9145 | -5/Hub_04(d) | Spotted Lightning 9145 | -5/Hub_04(d) | Spotted Lightning 9149 | -5/Hub_04(d) | Spotted Lightning 9150 | -5/Hub_04(d) | Spotted Lightning 9151 | -5/Hub_04(d) | Discovered exit to Factory (range 16) 9160 | -5/Hub_04(d) | Spotted Lightning 9170 | -5/Hub_04(d) | Reached level 23 9170 | -5/Hub_04(d) | Network Hub disabled 9174 | -5/Hub_04(d) | Build established: Scavenger-Scout 9185 | -5/Hub_04(d) | Disrupted transfer network 9194 | -5/Hub_04(d) | Entered Factory 9289 | -4/Factory | Sucked down chute 9289 | -4/Factory | Entered Waste 9292 | -4/Waste | Spotted C-40 Crusher 9304 | -4/Waste | EMP discharged 9304 | -4/Waste | Spotted C-40 Crusher 9305 | -4/Waste | Spotted C-40 Crusher 9309 | -4/Waste | Spotted C-40 Crusher 9311 | -4/Waste | Spotted C-40 Crusher 9314 | -4/Waste | Spotted C-40 Crusher 9315 | -4/Waste | Identified exit to Factory 9315 | -4/Waste | Discovered exit to Factory (range 13) 9316 | -4/Waste | Crushed by Compactor (1 part destroyed, 1 dropped) 9319 | -4/Waste | Entered Factory 9350 | -4/Factory | Spotted B-86 Titan 9368 | -4/Factory | Destroyed B-86 Titan 9393 | -4/Factory | Reached level 24 9424 | -4/Factory | Repaired Hpw. Tractor Beam 9480 | -4/Factory | Unchained authorized (CL-0N3) 9545 | -4/Factory | Identified exit to Armory 9545 | -4/Factory | Discovered exit to Armory (range 12) 9717 | -4/Factory | Found Prototype Device 9717 | -4/Factory | Identified Exp. ECM Suite 9783 | -4/Factory | Identified exit to Research 9783 | -4/Factory | Discovered exit to Research (range 15) 9796 | -4/Factory | Entered Research 9798 | -3/Research | Reached level 25 9816 | -3/Research | Found Powered Armor 9933 | -3/Research | Upgraded with Utility slot (x1) 9981 | -3/Research | Identified exit to Research 9985 | -3/Research | Unchained authorized (CL-0N3) 9992 | -3/Research | Build established: Scientist-Scout 10036 | -3/Research | Entered another Research area 10038 | -2/Research | Reached level 26 10038 | -2/Research | Reached level 27 10125 | -2/Research | Upgraded with Propulsion slot (x1) 10179 | -2/Research | Upgraded with Utility slot (x1) 10210 | -2/Research | Fabricated H-66 Slayer? 10220 | -2/Research | Unchained authorized (CL-0N3) 10397 | -2/Research | Fabricated Hyp. Coil Gun? 10495 | -2/Research | M-36 Artificer reconstituted as S7 Guard 10495 | -2/Research | Spotted S7 Guard 10504 | -2/Research | Reached level 28 10643 | -2/Research | Identified exit to Quarantine 10703 | -2/Research | Identified exit to Access 10753 | -2/Research | T-07 Excavator reconstituted as V2 10753 | -2/Research | Spotted V2 10785 | -2/Research | Core integrity fell below 50% 10833 | -2/Research | Core integrity fell below 20% 10841 | -2/Research | Entered Access 10842 | -1/Access | Core integrity fell below 50% 10842 | -1/Access | Core integrity fell below 20% 10843 | -1/Access | Reached level 29 10843 | -1/Access | Reached level 30 10843 | -1/Access | Upgraded with Power slot (x1) 10843 | -1/Access | Upgraded with Propulsion slot (x1) 10925 | -1/Access | Build established: Scavenger-Scout 10973 | -1/Access | Identified exit to Surface 10973 | -1/Access | Identified exit to Command 11206 | -1/Access | Incoming investigation squad redirected 11245 | -1/Access | Spotted B-99 Colossus 11247 | -1/Access | Spotted B-99 Colossus 11267 | -1/Access | Spotted B-99 Colossus 11376 | -1/Access | Entered Command 11378 | -1/Command | Reached level 31 11378 | -1/Command | Reached level 32 11407 | -1/Command | Repaired Powered Armor 11448 | -1/Command | Reached level 33 11459 | -1/Command | Disengaged cave seal 11568 | -1/Command | Spotted Striker 11568 | -1/Command | Spotted Executioner 11568 | -1/Command | Spotted Executioner 11568 | -1/Command | Spotted Alpha 7 11568 | -1/Command | Spotted Alpha 7 11568 | -1/Command | Spotted Striker 11568 | -1/Command | Spotted Executioner 11568 | -1/Command | Spotted Executioner 11568 | -1/Command | Spotted B-99 Colossus 11571 | -1/Command | Spotted B-99 Colossus 11575 | -1/Command | Discovered exit to Surface (range 13) 11585 | -1/Command | Destroyed by Executioner with Helical Railgun Last Messages --------------- 11583_ Triggered Stasis Trap. 11583_ A bubble of rippling energy engulfs the area. 11583_ Field strength at 77. 11583_ Knocked back. 11583_ Triggered Stasis Trap. 11583_ Penetrated by Slug. 11583_ A bubble of rippling energy engulfs the area. 11583_ Field strength at 77. 11583_ Field strength at 54. 11584_ Penetrated by Slug. 11584_ Slug penetrates Wall. 11584_ Field strength at 13. 11585_ Penetrated by Slug. 11585_ Slug penetrates Access Shell. 11585_ Slug penetrates Striker. 11585_ Stasis field depleted. 11585_ Penetrated by Slug. 11585_ Stasis field depleted. 11585_ Slug penetrates Wall. 11585_ Penetrated by Slug. Map ----- +----------------------------------------------------+ | ????????????????????# """" ? " + # | | ????????????????????# """" ?" # ] # | | ????????????????????# "" ?# # # | | ????????????????????# #* # # | | ????????????????????# # # # | | ????????????????????# + # # | | ????????????????????# # # # | | ?????????????????############## ! ###+###### | | ??????????????? #???? | | ????????????????????????## #???? | | ??????????????????#####??# #???? | | ??????????????????# ?# #???? | | ??????????????????# = ?# ######## ###?? | | ??????????????????# # #??????# +?? | | ??????????????????#]]] # #??????# ###?? | | ??????????????????#]]! " #??????# #???? | | ??????????????????#]]! # #??????# #???? | | ??????????????????# ! # #?????##+###+######? | | ??????????????????## ##### #?????# #? | | ???????????????????#????#;++;;###???# #? | | ????????????????????????# ^;#???# #? | | ???????????????????????## ^ % ##???# #? | | ???????????????????????# 7^ 7 #???# [ #? | | ???????????????????????##!E% ! ##???# ! ! #? | | ???????????????????????#*^%^ ^ %#???# !!! #? | | ??????????????????????###@K]%E ##???# ! #? | | ??????????????????????#;!^K[ E #???# #? | | ??????????????????????###!!^^ ##???# #? | | ???????????????????????# #???# #? | | ???????????????????????#;% ;;#??# #? | | ?????????????????????? B BB #?# #? | | ?????????????????????# B BB #?##+####+#####? | | ?????????????????????# ^ ^ #??# #??# #????? | | ?????????????????????# ^ """ #??# #??# #????# | | ?????????????????????# " ??^ #??# #??# #?? # | | ?????????????????????# " ""?? #??# #??# # # | | ?????????????????????# " "< ? #??# #??# + # | | ?????????????????????# " ?? #?? #??# # # | | ?????????????????????# " """"? #?? #??# #??### | | ?????????????????????# ? ???? #?# #??# #????? | | ?????????????????????# ? ???? #?# #??# #????? | | ?????????????????????# ? ????? #?# #??# #????? | | ?????????????????????####?##?????##?# ?? #????? | | ????????????????????????????????????# ?? +????? | | ????????????????????????????????????# #??# #????? | | ????????????????????????????????????# #??# #????? | | ????????????????????????????????????# ???# #????? | | ????????????????????????????????????# ???? ?????? | | ????????????????????????????????????# ???? ?????? | | ????????????????????????????????????# ???? ?????? | +----------------------------------------------------+ Best States ------------- Heat Dissipation 99 Energy Generation 82 Energy Capacity 600 Matter Stores 500 Matter Capacity 500 Sight Range 20 Robot Scan Range 36 Terrain Scan Range 16 Terrain Scan Density 1010 Power Amplification 30 Base Temperature (-) 150 EM Shielding 2 Armor Coverage 800 Resistance: KI 65 Resistance: TH 45 Resistance: EX 45 Resistance: EM 60 Resistance: I 35 Resistance: S 35 Resistance: P 35 Propulsion Shielding 33 Phase Shifting 15 Evasion (%) 72 Targeting Accuracy 5 Target Analysis 8 Armor Integrity Analysis 30 Recoil Reduction 6 Kinecelleration 40 Offensive Hacking 20 Item Schematics ----------------- Hyp. Coil Gun | -7/Storage | Hacked Combat Drone Bay | -6/Data Miner | Free Lgt. Regenerative Plating | -6/Data Miner | Free Cld. Nuclear Pulse Thruster | -6/Data Miner | Free Imp. Matter Compressor | -6/Data Miner | Free Hvy. Proton Missile Launcher | -6/Data Miner | Free Imp. Heavy Treads | -6/Data Miner | Free Graphene Brace | -6/Data Miner | Free HERF Cannon | -6/Data Miner | Free Tesla Rifle | -6/Data Miner | Free Adv. Cryofiber Web | -6/Data Miner | Free Imp. Cloaking Device | -6/Data Miner | Free Biometal Leg | -6/Data Miner | Free Adv. Point Defense System | -6/Data Miner | Free Robot Schematics ------------------ H-66 Slayer | -6/Data Miner | Free L-41 Fighter | -6/Data Miner | Free B-60 Warrior | -6/Data Miner | Free A-27 Freighter | -6/Data Miner | Free Fabricated ------------ Imp. Medium Armor Plating | x2 | -7/Factory | Preloaded Hyp. Coil Gun | x2 | -5/Factory H-66 Slayer | x2 | -2/Research Hyp. Coil Gun | x2 | -2/Research Repaired ---------- Hpw. Tractor Beam | 56% | -4/Factory Powered Armor | 36% | -1/Command Studied --------- Minigun | -8/Materials | Hacked Imp. Hover Unit | -8/Materials | Hacked Hyp. Coil Gun | -5/Factory | Hacked Linear Gravjet | -5/Factory | Hacked Railgun | -4/Factory | Hacked Imp. Linear Gravjet | -4/Factory | Hacked Antimatter Reactor | -4/Factory | Hacked Imp. Gyrokinetic Inverter | -4/Factory | Hacked Lgt. Particle Reactor | -3/Research | Hacked Quantum Reactor | -2/Research | Hacked Alien Tech Used ----------------- None Achievements -------------- Art Critic Survival Of The Most Covered The Better Part Of Valor Challenges ------------ None RPGLIKE | -11 -10 -10 -8 -7 -7 -6 -6 -6 -6 -5 -5 -5 -5 -5 -5 -4 -4 -4 -3 -2 -1 -1 --------- Run | Yrd Mat Sub Mat Fac Sto Fac Low Low Dat Pro Fac Ext Cet Arc Hub Fac Was Fac Res Res Acc Com Levels Raised 32 | . . 1 5 3 3 2 . 1 1 1 2 1 . 1 1 . . 1 1 3 2 3 XP Earned 54133 | 6000 900 1500 7451 4648 3590 3060 1000 1300 650 2128 2300 1855 771 412 1540 1073 139 907 2160 4275 3135 3339 XP Spent 49100 | 4975 500 1770 7630 4150 2000 3600 1490 2385 . 660 3250 2600 . . . . . . 5070 4900 4120 . Upgrades 88 | 18 1 3 16 8 1 3 6 8 . 2 3 1 . . . . . . 5 2 11 . Power Slot 2 | . . . . 1 . . . . . . . . . . . . . . . . 1 . Propulsion Slot 6 | 1 . . 2 . . . . . . . 1 . . . . . . . . 1 1 . Utility Slot 10 | 2 . 1 1 1 1 1 . . . . . 1 . . . . . . 1 1 . . Weapon Slot 2 | 1 . . 1 . . . . . . . . . . . . . . . . . . . Core Integrity 8 | . . . . . . . . 2 . . . . . . . . . . . . 6 . Heat Dissipation 9 | 1 . 1 4 . . . . . . . . . . . . . . . 3 . . . Energy Generation 4 | 1 . . 1 . . . . . . . 2 . . . . . . . . . . . Matter Storage 4 | . . . . . . . 4 . . . . . . . . . . . . . . . Mass Support 4 | 1 . 1 1 . . . . . . . . . . . . . . . 1 . . . Inventory Capacity 3 | 1 1 . 1 . . . . . . . . . . . . . . . . . . . Sight Range 4 | 2 . . . . . . . 2 . . . . . . . . . . . . . . Sensor Range 9 | 6 . . . . . . . 2 . 1 . . . . . . . . . . . . Terrain Scan Density 10 | . . . 5 . . . 2 2 . 1 . . . . . . . . . . . . Ranged Accuracy 5 | 2 . . . 2 . 1 . . . . . . . . . . . . . . . . KI Resistance % 2 | . . . . 1 . . . . . . . . . . . . . . . . 1 . TH Resistance % 2 | . . . . 1 . . . . . . . . . . . . . . . . 1 . EX Resistance % 2 | . . . . 1 . . . . . . . . . . . . . . . . 1 . KI Damage % 2 | . . . . 1 . 1 . . . . . . . . . . . . . . . . Protomatter Created 3891 | . 104 516 259 195 258 65 34 127 . 370 260 518 130 95 286 . . 150 . 225 227 72 Integrity Restored 6411 | . 161 974 499 219 182 343 102 260 . 321 147 804 66 107 240 401 . 252 120 652 561 . Core 4507 | . 114 685 255 108 111 251 102 159 . 220 87 639 17 34 240 280 . 111 120 413 561 . Parts 1904 | . 47 289 244 111 71 92 . 101 . 101 60 165 49 73 . 121 . 141 . 239 . . Protomatter Decayed 2476 | . 3 210 176 86 140 30 . . . 106 173 535 225 78 480 . . 127 . . 40 67 Game ------ Seed AnalysisNovaHumpback Manual? 0 Play Time 03:23:14 Cumulative 322.8 hours Start 2025.11.12 @ 22:17:16 End 2025.11.13 @ 21:31:38 Sessions 3 Manual Loads 0 Difficulty Explorer Special Mode Winter2019/RPGLIKE Game No. 119 Rogue 0 Adventurer 1 Explorer 118 Win Type - Total 26 Types 14/1/5/3/0/1/1/0/1/0 Lore% 67 Gallery% 72 Achievement% 53 Wizard Run 0 Options --------- Layout 0 ASCII 0 Keyboard 1 Movement Numpad Keybinds 0 Fullscreen 0 Font 16/SmallcapsGlow Map View 88x55 Zoom Use 0% Tactical HUD 1 Map Filters BRIGHTNESS(150) Filters NONE Steam 1 RUN: 009c3ea2-60f4-4e12-a5f3-22be0787a3ee